[Event "Titled Tuesday Blitz August 22 Late 2023"]
[White "Ilkhomi, Jaloliddin"]
[Black "Vanek, Tomas"]
[WhiteFideId "14700948"]
[BlackFideId "313459"]
[WhiteElo "2555"]
[BlackElo "2207"]
[Result "1-0"]
[Round "1"]
[TimeControl "180+1"]
[Date "2023.08.22"]
[WhiteClock "0:02:28"]
[BlackClock "0:01:09"]
[Board "190"]

1. d4 {[%clk 0:03:00]}  f5 {[%clk 0:02:58]} 2. Nf3 {[%clk 0:03:00]}  Nf6 {[%clk 0:02:57]} 3. Bf4 {[%clk 0:02:59]}  g6 {[%clk 0:02:45]} 4. Nbd2 {[%clk 0:02:58]}  Bg7 {[%clk 0:02:44]} 5. e3 {[%clk 0:02:57]}  O-O {[%clk 0:02:41]} 6. h3 {[%clk 0:02:57]}  d6 {[%clk 0:02:35]} 7. c3 {[%clk 0:02:53]}  c6 {[%clk 0:02:33]} 8. Rg1 {[%clk 0:02:53]}  Kh8 {[%clk 0:02:25]} 9. Bc4 {[%clk 0:02:48]}  b5 {[%clk 0:02:22]} 10. Bb3 {[%clk 0:02:48]}  a5 {[%clk 0:02:22]} 11. a4 {[%clk 0:02:47]}  Nbd7 {[%clk 0:02:12]} 12. Ng5 {[%clk 0:02:46]}  e5 {[%clk 0:02:07]} 13. Ne6 {[%clk 0:02:45]}  Qe7 {[%clk 0:02:06]} 14. Nxf8 {[%clk 0:02:37]}  exf4 {[%clk 0:01:49]} 15. Nxd7 {[%clk 0:02:36]}  fxe3 {[%clk 0:01:48]} 16. Nxf6 {[%clk 0:02:31]}  exd2+ {[%clk 0:01:40]} 17. Kxd2 {[%clk 0:02:31]}  Qxf6 {[%clk 0:01:33]} 18. Qf3 {[%clk 0:02:31]}  d5 {[%clk 0:01:28]} 19. axb5 {[%clk 0:02:29]}  cxb5 {[%clk 0:01:13]} 20. Qxd5 {[%clk 0:02:29]}  Rb8 {[%clk 0:01:09]} 21. Qg8# {[%clk 0:02:28]} 1-0


[Site "https://www.chess.com"]

[Event "Titled Tuesday Blitz August 22 Late 2023"]
[White "Siniauski, Artsiom"]
[Black "campochess"]
[WhiteFideId "13512269"]
[WhiteElo "2554"]
[BlackElo "2196"]
[Result "1-0"]
[Round "1"]
[TimeControl "180+1"]
[Date "2023.08.22"]
[WhiteClock "0:00:28"]
[BlackClock "0:00:35"]
[Board "192"]

1. e4 {[%clk 0:02:58]}  c5 {[%clk 0:02:59]} 2. Nf3 {[%clk 0:02:56]}  Nc6 {[%clk 0:02:59]} 3. Bb5 {[%clk 0:02:56]}  e5 {[%clk 0:02:58]} 4. Bxc6 {[%clk 0:02:53]}  dxc6 {[%clk 0:02:55]} 5. d3 {[%clk 0:02:51]}  f6 {[%clk 0:02:53]} 6. Be3 {[%clk 0:02:48]}  Bd6 {[%clk 0:02:51]} 7. Nbd2 {[%clk 0:02:44]}  b6 {[%clk 0:02:46]} 8. Nc4 {[%clk 0:02:44]}  Bc7 {[%clk 0:02:46]} 9. Qd2 {[%clk 0:02:30]}  Ne7 {[%clk 0:02:45]} 10. a3 {[%clk 0:02:28]}  Be6 {[%clk 0:02:44]} 11. Qc3 {[%clk 0:02:23]}  O-O {[%clk 0:02:42]} 12. b4 {[%clk 0:02:22]}  cxb4 {[%clk 0:02:40]} 13. axb4 {[%clk 0:02:23]}  Qe8 {[%clk 0:02:29]} 14. O-O {[%clk 0:02:20]}  Qf7 {[%clk 0:02:29]} 15. Ra6 {[%clk 0:02:18]}  Bc8 {[%clk 0:02:26]} 16. Ra3 {[%clk 0:02:14]}  Be6 {[%clk 0:02:23]} 17. Rfa1 {[%clk 0:02:13]}  Bxc4 {[%clk 0:02:20]} 18. Qxc4 {[%clk 0:02:11]}  Qxc4 {[%clk 0:02:19]} 19. dxc4 {[%clk 0:02:12]}  a5 {[%clk 0:02:18]} 20. c5 {[%clk 0:02:04]}  bxc5 {[%clk 0:02:07]} 21. Bxc5 {[%clk 0:01:59]}  Kf7 {[%clk 0:02:07]} 22. bxa5 {[%clk 0:01:58]}  Rfd8 {[%clk 0:02:00]} 23. a6 {[%clk 0:01:57]}  Nc8 {[%clk 0:01:59]} 24. Kf1 {[%clk 0:01:53]}  Bd6 {[%clk 0:01:52]} 25. Bxd6 {[%clk 0:01:52]}  Rxd6 {[%clk 0:01:51]} 26. Ke2 {[%clk 0:01:50]}  Na7 {[%clk 0:01:49]} 27. Rb3 {[%clk 0:01:47]}  Rd7 {[%clk 0:01:46]} 28. Rb7 {[%clk 0:01:44]}  Ke6 {[%clk 0:01:46]} 29. c4 {[%clk 0:01:41]}  Nc8 {[%clk 0:01:44]} 30. Rxd7 {[%clk 0:01:31]}  Kxd7 {[%clk 0:01:43]} 31. Nd2 {[%clk 0:01:32]}  Na7 {[%clk 0:01:34]} 32. Rb1 {[%clk 0:01:28]}  Rc8 {[%clk 0:01:34]} 33. Kd3 {[%clk 0:01:10]}  Rc7 {[%clk 0:01:29]} 34. Nb3 {[%clk 0:01:08]}  Kd6 {[%clk 0:01:29]} 35. Na5 {[%clk 0:01:06]}  g6 {[%clk 0:01:23]} 36. Nb7+ {[%clk 0:00:45]}  Ke7 {[%clk 0:01:20]} 37. Rb6 {[%clk 0:00:43]}  f5 {[%clk 0:01:18]} 38. exf5 {[%clk 0:00:41]}  gxf5 {[%clk 0:01:17]} 39. Ke3 {[%clk 0:00:42]}  Rd7 {[%clk 0:01:10]} 40. Nc5 {[%clk 0:00:39]}  Rc7 {[%clk 0:01:09]} 41. Nd3 {[%clk 0:00:35]}  Kd6 {[%clk 0:01:08]} 42. c5+ {[%clk 0:00:30]}  Kd5 {[%clk 0:01:04]} 43. Rb7 {[%clk 0:00:31]}  Nb5 {[%clk 0:01:02]} 44. Rxc7 {[%clk 0:00:28]}  Nxc7 {[%clk 0:01:01]} 45. a7 {[%clk 0:00:29]}  e4 {[%clk 0:00:56]} 46. Nf4+ {[%clk 0:00:28]}  Kxc5 {[%clk 0:00:56]} 47. Ne6+ {[%clk 0:00:28]}  Kb6 {[%clk 0:00:42]} 48. Nxc7 {[%clk 0:00:28]}  Kxa7 {[%clk 0:00:41]} 49. Ne8 {[%clk 0:00:27]}  Kb6 {[%clk 0:00:40]} 50. Nd6 {[%clk 0:00:27]}  Kc5 {[%clk 0:00:39]} 51. Nxf5 {[%clk 0:00:28]}  Kd5 {[%clk 0:00:39]} 52. Ne7+ {[%clk 0:00:28]}  Kd6 {[%clk 0:00:38]} 53. Nxc6 {[%clk 0:00:27]}  Kxc6 {[%clk 0:00:38]} 54. Kxe4 {[%clk 0:00:28]}  Kd6 {[%clk 0:00:35]} 55. Kf5 {[%clk 0:00:28]} 1-0


[Site "https://www.chess.com"]

[Event "Titled Tuesday Blitz August 22 Late 2023"]
[White "Erece, Ece Alkim"]
[Black "Przybylski, Wojciech"]
[WhiteFideId "6346006"]
[BlackFideId "1117599"]
[WhiteElo "2196"]
[BlackElo "2552"]
[Result "0-1"]
[Round "1"]
[TimeControl "180+1"]
[Date "2023.08.22"]
[WhiteClock "0:00:00"]
[BlackClock "0:00:16"]
[Board "193"]

1. e4 {[%clk 0:02:58]}  c5 {[%clk 0:02:59]} 2. Nf3 {[%clk 0:02:58]}  d6 {[%clk 0:02:58]} 3. d4 {[%clk 0:02:57]}  cxd4 {[%clk 0:02:58]} 4. Nxd4 {[%clk 0:02:58]}  Nf6 {[%clk 0:02:58]} 5. Nc3 {[%clk 0:02:58]}  e6 {[%clk 0:02:56]} 6. h3 {[%clk 0:02:55]}  h5 {[%clk 0:02:55]} 7. Be3 {[%clk 0:02:52]}  Nbd7 {[%clk 0:02:53]} 8. Bc4 {[%clk 0:02:43]}  Nc5 {[%clk 0:02:42]} 9. Qf3 {[%clk 0:02:38]}  a6 {[%clk 0:02:39]} 10. b4 {[%clk 0:02:35]}  Ncd7 {[%clk 0:02:38]} 11. a4 {[%clk 0:02:32]}  Ne5 {[%clk 0:02:37]} 12. Qe2 {[%clk 0:02:32]}  Qc7 {[%clk 0:02:37]} 13. Bb5+ {[%clk 0:02:14]}  axb5 {[%clk 0:02:34]} 14. Ncxb5 {[%clk 0:02:15]}  Qd8 {[%clk 0:02:28]} 15. f4 {[%clk 0:02:12]}  Nc6 {[%clk 0:02:26]} 16. Qd3 {[%clk 0:01:57]}  d5 {[%clk 0:02:14]} 17. e5 {[%clk 0:01:49]}  Ne4 {[%clk 0:02:11]} 18. c3 {[%clk 0:01:46]}  Qh4+ {[%clk 0:02:04]} 19. g3 {[%clk 0:01:16]}  Qxg3+ {[%clk 0:01:51]} 20. Kf1 {[%clk 0:01:14]}  Nxd4 {[%clk 0:01:18]} 21. Nxd4 {[%clk 0:00:20]}  Bd7 {[%clk 0:01:02]} 22. Rg1 {[%clk 0:00:05]}  Qxh3+ {[%clk 0:01:00]} 23. Ke1 {[%clk 0:00:06]}  Be7 {[%clk 0:00:52]} 24. Rxg7 {[%clk 0:00:04]}  Qh2 {[%clk 0:00:36]} 25. Rg1 {[%clk 0:00:02]}  Rc8 {[%clk 0:00:23]} 26. Nb5 {[%clk 0:00:00]}  Qb2 {[%clk 0:00:16]} 0-1


[Site "https://www.chess.com"]

[Event "Titled Tuesday Blitz August 22 Late 2023"]
[White "Kashefi, Amir Hosein"]
[Black "Osmonbekov, Talaibek"]
[WhiteFideId "12557935"]
[BlackFideId "2017253"]
[WhiteElo "2551"]
[BlackElo "2181"]
[Result "1-0"]
[Round "1"]
[TimeControl "180+1"]
[Date "2023.08.22"]
[WhiteClock "0:01:09"]
[BlackClock "0:00:00"]
[Board "194"]

1. d4 {[%clk 0:02:52]}  e6 {[%clk 0:02:57]} 2. Nf3 {[%clk 0:02:47]}  f5 {[%clk 0:02:57]} 3. g3 {[%clk 0:02:47]}  Nf6 {[%clk 0:02:54]} 4. Bg2 {[%clk 0:02:45]}  Be7 {[%clk 0:02:54]} 5. O-O {[%clk 0:02:44]}  O-O {[%clk 0:02:54]} 6. b3 {[%clk 0:02:42]}  d6 {[%clk 0:02:54]} 7. Bb2 {[%clk 0:02:39]}  a5 {[%clk 0:02:54]} 8. c4 {[%clk 0:02:35]}  a4 {[%clk 0:02:49]} 9. Nbd2 {[%clk 0:02:35]}  Ne4 {[%clk 0:02:46]} 10. Qc2 {[%clk 0:02:34]}  a3 {[%clk 0:02:42]} 11. Bc3 {[%clk 0:02:29]}  Nxc3 {[%clk 0:02:40]} 12. Qxc3 {[%clk 0:02:30]}  Nc6 {[%clk 0:02:40]} 13. Rad1 {[%clk 0:02:29]}  Bf6 {[%clk 0:02:29]} 14. e4 {[%clk 0:02:29]}  e5 {[%clk 0:02:26]} 15. dxe5 {[%clk 0:02:23]}  dxe5 {[%clk 0:02:18]} 16. Rfe1 {[%clk 0:02:14]}  Qe7 {[%clk 0:01:57]} 17. exf5 {[%clk 0:02:05]}  Bxf5 {[%clk 0:01:27]} 18. Ne4 {[%clk 0:02:04]}  Nb4 {[%clk 0:01:09]} 19. Rd2 {[%clk 0:01:51]}  Rad8 {[%clk 0:01:02]} 20. Nxf6+ {[%clk 0:01:48]}  gxf6 {[%clk 0:01:02]} 21. Ree2 {[%clk 0:01:43]}  Rxd2 {[%clk 0:00:51]} 22. Rxd2 {[%clk 0:01:41]}  Rd8 {[%clk 0:00:52]} 23. Rxd8+ {[%clk 0:01:37]}  Qxd8 {[%clk 0:00:51]} 24. Qxb4 {[%clk 0:01:38]}  Qd1+ {[%clk 0:00:49]} 25. Qe1 {[%clk 0:01:37]}  Qxe1+ {[%clk 0:00:45]} 26. Nxe1 {[%clk 0:01:37]}  Bb1 {[%clk 0:00:46]} 27. Bxb7 {[%clk 0:01:32]}  Bxa2 {[%clk 0:00:46]} 28. Bd5+ {[%clk 0:01:31]}  Kf8 {[%clk 0:00:44]} 29. Nc2 {[%clk 0:01:32]}  Bxb3 {[%clk 0:00:42]} 30. Nxa3 {[%clk 0:01:32]}  Ke7 {[%clk 0:00:42]} 31. Nb5 {[%clk 0:01:26]}  c6 {[%clk 0:00:39]} 32. Bxc6 {[%clk 0:01:26]}  Bxc4 {[%clk 0:00:39]} 33. Nc3 {[%clk 0:01:26]}  f5 {[%clk 0:00:35]} 34. f4 {[%clk 0:01:23]}  Kd6 {[%clk 0:00:29]} 35. Bf3 {[%clk 0:01:18]}  exf4 {[%clk 0:00:19]} 36. gxf4 {[%clk 0:01:19]}  Kc5 {[%clk 0:00:20]} 37. Kf2 {[%clk 0:01:17]}  Kd4 {[%clk 0:00:19]} 38. Ne2+ {[%clk 0:01:17]}  Kd3 {[%clk 0:00:15]} 39. Ng3 {[%clk 0:01:16]}  Be6 {[%clk 0:00:14]} 40. h4 {[%clk 0:01:16]}  Kd2 {[%clk 0:00:12]} 41. h5 {[%clk 0:01:15]}  h6 {[%clk 0:00:08]} 42. Bg2 {[%clk 0:01:14]}  Kd3 {[%clk 0:00:04]} 43. Bh3 {[%clk 0:01:11]}  Kd4 {[%clk 0:00:04]} 44. Kf3 {[%clk 0:01:08]}  Bd5+ {[%clk 0:00:02]} 45. Kf2 {[%clk 0:01:09]}  Be6 {[%clk 0:00:00]} 46. Bxf5 {[%clk 0:01:09]} 1-0


[Site "https://www.chess.com"]

[Event "Titled Tuesday Blitz August 22 Late 2023"]
[White "ArmanGhevondyanchess"]
[Black "ArtemDyachuk"]
[WhiteElo "2180"]
[BlackElo "2549"]
[Result "1-0"]
[Round "1"]
[TimeControl "180+1"]
[Date "2023.08.22"]
[WhiteClock "0:00:19"]
[BlackClock "0:00:01"]
[Board "195"]

1. Nf3 {[%clk 0:03:00]}  Nf6 {[%clk 0:02:59]} 2. d4 {[%clk 0:03:00]}  e6 {[%clk 0:02:59]} 3. g3 {[%clk 0:03:01]}  c5 {[%clk 0:02:59]} 4. Bg2 {[%clk 0:03:02]}  cxd4 {[%clk 0:02:56]} 5. O-O {[%clk 0:03:02]}  Nc6 {[%clk 0:02:54]} 6. Nxd4 {[%clk 0:03:03]}  Bc5 {[%clk 0:02:50]} 7. Nb3 {[%clk 0:03:02]}  Bb6 {[%clk 0:02:50]} 8. c4 {[%clk 0:03:02]}  d6 {[%clk 0:02:45]} 9. Nc3 {[%clk 0:03:02]}  O-O {[%clk 0:02:44]} 10. Bg5 {[%clk 0:02:52]}  Ne5 {[%clk 0:02:30]} 11. Nd2 {[%clk 0:02:45]}  h6 {[%clk 0:02:29]} 12. Bxf6 {[%clk 0:02:39]}  Qxf6 {[%clk 0:02:29]} 13. Nde4 {[%clk 0:02:39]}  Qg6 {[%clk 0:02:10]} 14. b3 {[%clk 0:02:36]}  Rd8 {[%clk 0:02:09]} 15. Rc1 {[%clk 0:02:34]}  Bc7 {[%clk 0:02:03]} 16. Nd2 {[%clk 0:02:30]}  Qf6 {[%clk 0:01:55]} 17. Nf3 {[%clk 0:02:27]}  Nc6 {[%clk 0:01:46]} 18. e3 {[%clk 0:02:20]}  a6 {[%clk 0:01:40]} 19. a3 {[%clk 0:02:18]}  Rb8 {[%clk 0:01:39]} 20. b4 {[%clk 0:02:14]}  Bd7 {[%clk 0:01:37]} 21. Ne4 {[%clk 0:02:10]}  Qe7 {[%clk 0:01:36]} 22. Qd2 {[%clk 0:02:07]}  Be8 {[%clk 0:01:32]} 23. Rfd1 {[%clk 0:02:07]}  f5 {[%clk 0:01:21]} 24. Nc3 {[%clk 0:02:06]}  Bh5 {[%clk 0:01:20]} 25. Re1 {[%clk 0:02:02]}  Qf6 {[%clk 0:01:11]} 26. Qc2 {[%clk 0:01:48]}  Bg6 {[%clk 0:01:00]} 27. Qb3 {[%clk 0:01:47]}  Kh7 {[%clk 0:00:58]} 28. Red1 {[%clk 0:01:46]}  Bh5 {[%clk 0:00:57]} 29. Rd2 {[%clk 0:01:45]}  Ne5 {[%clk 0:00:55]} 30. Nd4 {[%clk 0:01:38]}  Bf7 {[%clk 0:00:48]} 31. Rcd1 {[%clk 0:01:34]}  h5 {[%clk 0:00:39]} 32. h4 {[%clk 0:01:31]}  g5 {[%clk 0:00:35]} 33. hxg5 {[%clk 0:01:31]}  Qxg5 {[%clk 0:00:36]} 34. f4 {[%clk 0:01:29]}  Qxg3 {[%clk 0:00:34]} 35. Nce2 {[%clk 0:01:25]}  Qg4 {[%clk 0:00:22]} 36. fxe5 {[%clk 0:01:19]}  dxe5 {[%clk 0:00:19]} 37. Nc2 {[%clk 0:01:17]}  Rg8 {[%clk 0:00:18]} 38. Nc3 {[%clk 0:01:11]}  e4 {[%clk 0:00:14]} 39. Ne1 {[%clk 0:01:00]}  Bg3 {[%clk 0:00:08]} 40. c5 {[%clk 0:00:48]}  h4 {[%clk 0:00:08]} 41. Rd7 {[%clk 0:00:42]}  Rg7 {[%clk 0:00:07]} 42. Rxf7 {[%clk 0:00:40]}  Rxf7 {[%clk 0:00:06]} 43. Qxe6 {[%clk 0:00:40]}  Rg7 {[%clk 0:00:06]} 44. Nxe4 {[%clk 0:00:34]}  fxe4 {[%clk 0:00:03]} 45. Bxe4+ {[%clk 0:00:30]}  Kh8 {[%clk 0:00:03]} 46. Qh6+ {[%clk 0:00:29]}  Kg8 {[%clk 0:00:02]} 47. Bd5+ {[%clk 0:00:29]}  Kf8 {[%clk 0:00:02]} 48. Qf6+ {[%clk 0:00:20]}  Ke8 {[%clk 0:00:03]} 49. Rd2 {[%clk 0:00:16]}  Bxe1+ {[%clk 0:00:02]} 50. Rg2 {[%clk 0:00:16]}  Qxg2+ {[%clk 0:00:01]} 51. Bxg2 {[%clk 0:00:17]}  Bc3 {[%clk 0:00:01]} 52. Qe6+ {[%clk 0:00:17]}  Kf8 {[%clk 0:00:01]} 53. Qd6+ {[%clk 0:00:17]}  Kf7 {[%clk 0:00:01]} 54. Qxb8 {[%clk 0:00:18]}  h3 {[%clk 0:00:02]} 55. Qxb7+ {[%clk 0:00:19]}  Kg8 {[%clk 0:00:02]} 56. Qd5+ {[%clk 0:00:19]}  Kh8 {[%clk 0:00:01]} 57. Qh5+ {[%clk 0:00:19]}  Kg8 {[%clk 0:00:01]} 58. Qxh3 {[%clk 0:00:19]} 1-0


[Site "https://www.chess.com"]

[Event "Titled Tuesday Blitz August 22 Late 2023"]
[White "reevecanada"]
[Black "Capp, Stephen"]
[BlackFideId "2027089"]
[WhiteElo "2549"]
[BlackElo "2179"]
[Result "1-0"]
[Round "1"]
[TimeControl "180+1"]
[Date "2023.08.22"]
[WhiteClock "0:00:31"]
[BlackClock "0:00:07"]
[Board "196"]

1. e4 {[%clk 0:02:38]}  e5 {[%clk 0:02:58]} 2. Nf3 {[%clk 0:02:36]}  d5 {[%clk 0:02:58]} 3. Nxe5 {[%clk 0:02:34]}  Bd6 {[%clk 0:02:58]} 4. d4 {[%clk 0:02:33]}  dxe4 {[%clk 0:02:58]} 5. Bc4 {[%clk 0:02:33]}  Bxe5 {[%clk 0:02:58]} 6. dxe5 {[%clk 0:02:33]}  Qxd1+ {[%clk 0:02:57]} 7. Kxd1 {[%clk 0:02:34]}  Nc6 {[%clk 0:02:57]} 8. Nc3 {[%clk 0:02:32]}  Nxe5 {[%clk 0:02:53]} 9. Bb3 {[%clk 0:02:30]}  Bg4+ {[%clk 0:02:50]} 10. Ke1 {[%clk 0:02:29]}  O-O-O {[%clk 0:02:45]} 11. h3 {[%clk 0:02:27]}  Bf5 {[%clk 0:02:38]} 12. Be3 {[%clk 0:02:25]}  Nf6 {[%clk 0:02:33]} 13. Ke2 {[%clk 0:02:24]}  h5 {[%clk 0:02:32]} 14. Rhd1 {[%clk 0:02:20]}  c6 {[%clk 0:02:26]} 15. Bxa7 {[%clk 0:02:18]}  g5 {[%clk 0:02:19]} 16. Bd4 {[%clk 0:02:15]}  Rhe8 {[%clk 0:02:17]} 17. Bxe5 {[%clk 0:02:14]}  Rxe5 {[%clk 0:02:14]} 18. Bxf7 {[%clk 0:02:14]}  g4 {[%clk 0:02:10]} 19. h4 {[%clk 0:02:13]}  g3 {[%clk 0:02:03]} 20. Rxd8+ {[%clk 0:02:12]}  Kxd8 {[%clk 0:02:02]} 21. fxg3 {[%clk 0:02:13]}  Bg4+ {[%clk 0:02:00]} 22. Ke3 {[%clk 0:02:13]}  Ke7 {[%clk 0:01:54]} 23. Bc4 {[%clk 0:02:12]}  b5 {[%clk 0:01:50]} 24. Be2 {[%clk 0:02:04]}  b4 {[%clk 0:01:34]} 25. Nd1 {[%clk 0:02:03]}  Rc5 {[%clk 0:01:29]} 26. Rc1 {[%clk 0:01:57]}  Ra5 {[%clk 0:01:23]} 27. Bxg4 {[%clk 0:01:56]}  Nxg4+ {[%clk 0:01:21]} 28. Kxe4 {[%clk 0:01:56]}  Rxa2 {[%clk 0:01:21]} 29. Kd4 {[%clk 0:01:56]}  Kd6 {[%clk 0:01:18]} 30. Kc4 {[%clk 0:01:56]}  c5 {[%clk 0:01:18]} 31. Kb3 {[%clk 0:01:52]}  Ra8 {[%clk 0:01:15]} 32. c3 {[%clk 0:01:50]}  Rb8 {[%clk 0:01:09]} 33. Kc2 {[%clk 0:01:48]}  b3+ {[%clk 0:01:09]} 34. Kd2 {[%clk 0:01:47]}  Rf8 {[%clk 0:01:08]} 35. Ra1 {[%clk 0:01:43]}  Rf1 {[%clk 0:01:04]} 36. Ra6+ {[%clk 0:01:42]}  Kd5 {[%clk 0:01:04]} 37. Rg6 {[%clk 0:01:37]}  Rg1 {[%clk 0:00:54]} 38. Rg5+ {[%clk 0:00:52]}  Ke4 {[%clk 0:00:44]} 39. Rxh5 {[%clk 0:00:50]}  Rxg2+ {[%clk 0:00:44]} 40. Ke1 {[%clk 0:00:49]}  Rg1+ {[%clk 0:00:34]} 41. Ke2 {[%clk 0:00:47]}  Rg2+ {[%clk 0:00:34]} 42. Kf1 {[%clk 0:00:47]}  Rxg3 {[%clk 0:00:27]} 43. Rxc5 {[%clk 0:00:46]}  Rh3 {[%clk 0:00:21]} 44. Nf2+ {[%clk 0:00:33]}  Nxf2 {[%clk 0:00:18]} 45. Kxf2 {[%clk 0:00:34]}  Rh2+ {[%clk 0:00:17]} 46. Kg3 {[%clk 0:00:33]}  Rxb2 {[%clk 0:00:17]} 47. Rb5 {[%clk 0:00:34]}  Rb1 {[%clk 0:00:17]} 48. Kg2 {[%clk 0:00:32]}  b2 {[%clk 0:00:17]} 49. h5 {[%clk 0:00:32]}  Rh1 {[%clk 0:00:07]} 50. Kxh1 {[%clk 0:00:31]} 1-0


[Site "https://www.chess.com"]

[Event "Titled Tuesday Blitz August 22 Late 2023"]
[White "Taboas Rodriguez, Daniel"]
[Black "Wieczorek, Zbigniew"]
[WhiteFideId "2208466"]
[BlackFideId "1102001"]
[WhiteElo "2548"]
[BlackElo "2160"]
[Result "1/2-1/2"]
[Round "1"]
[TimeControl "180+1"]
[Date "2023.08.22"]
[WhiteClock "0:00:20"]
[BlackClock "0:00:52"]
[Board "198"]

1. d4 {[%clk 0:02:59]}  d6 {[%clk 0:02:58]} 2. Nf3 {[%clk 0:02:59]}  Bg4 {[%clk 0:02:57]} 3. c4 {[%clk 0:03:00]}  Nd7 {[%clk 0:02:55]} 4. Nc3 {[%clk 0:02:58]}  e5 {[%clk 0:02:54]} 5. e4 {[%clk 0:02:55]}  exd4 {[%clk 0:02:47]} 6. Qxd4 {[%clk 0:02:54]}  Bxf3 {[%clk 0:02:46]} 7. gxf3 {[%clk 0:02:55]}  Ngf6 {[%clk 0:02:41]} 8. Bh3 {[%clk 0:02:53]}  Ne5 {[%clk 0:02:37]} 9. Bg2 {[%clk 0:02:45]}  Ng6 {[%clk 0:02:32]} 10. Be3 {[%clk 0:02:25]}  Be7 {[%clk 0:02:28]} 11. O-O-O {[%clk 0:02:23]}  Nh4 {[%clk 0:02:20]} 12. Rhg1 {[%clk 0:02:16]}  Nxg2 {[%clk 0:02:15]} 13. Rxg2 {[%clk 0:02:16]}  g6 {[%clk 0:02:12]} 14. Bh6 {[%clk 0:02:13]}  Rg8 {[%clk 0:02:06]} 15. Rgg1 {[%clk 0:02:07]}  Nd7 {[%clk 0:02:03]} 16. f4 {[%clk 0:01:58]}  c6 {[%clk 0:01:52]} 17. Kb1 {[%clk 0:01:51]}  Qb6 {[%clk 0:01:49]} 18. e5 {[%clk 0:01:44]}  Qxd4 {[%clk 0:01:48]} 19. Rxd4 {[%clk 0:01:45]}  dxe5 {[%clk 0:01:46]} 20. fxe5 {[%clk 0:01:45]}  O-O-O {[%clk 0:01:41]} 21. f4 {[%clk 0:01:43]}  Nc5 {[%clk 0:01:41]} 22. Rgd1 {[%clk 0:01:40]}  Rxd4 {[%clk 0:01:40]} 23. Rxd4 {[%clk 0:01:41]}  Ne6 {[%clk 0:01:41]} 24. Rd3 {[%clk 0:01:35]}  f5 {[%clk 0:01:38]} 25. exf6 {[%clk 0:01:19]}  Bxf6 {[%clk 0:01:37]} 26. Ne4 {[%clk 0:01:19]}  Be7 {[%clk 0:01:36]} 27. Kc2 {[%clk 0:01:14]}  Rd8 {[%clk 0:01:33]} 28. Bg5 {[%clk 0:01:10]}  Bxg5 {[%clk 0:01:28]} 29. fxg5 {[%clk 0:01:03]}  Rxd3 {[%clk 0:01:13]} 30. Kxd3 {[%clk 0:01:02]}  Kd8 {[%clk 0:01:13]} 31. h4 {[%clk 0:01:00]}  Ke7 {[%clk 0:01:13]} 32. Ke3 {[%clk 0:00:55]}  Ng7 {[%clk 0:01:11]} 33. Ng3 {[%clk 0:00:52]}  Ke6 {[%clk 0:01:10]} 34. Ke4 {[%clk 0:00:52]}  Ne8 {[%clk 0:01:08]} 35. b3 {[%clk 0:00:40]}  c5 {[%clk 0:01:00]} 36. Kf4 {[%clk 0:00:34]}  Nd6 {[%clk 0:00:59]} 37. Ne4 {[%clk 0:00:32]}  Nxe4 {[%clk 0:00:58]} 38. Kxe4 {[%clk 0:00:33]}  b6 {[%clk 0:00:57]} 39. a3 {[%clk 0:00:31]}  a5 {[%clk 0:00:54]} 40. Kf4 {[%clk 0:00:27]}  Kd6 {[%clk 0:00:52]} 41. Ke4 {[%clk 0:00:22]}  Ke6 {[%clk 0:00:52]} 42. Kf4 {[%clk 0:00:19]}  Kd6 {[%clk 0:00:52]} 43. Ke4 {[%clk 0:00:20]}  Ke6 {[%clk 0:00:52]} 1/2-1/2


[Site "https://www.chess.com"]

[Event "Titled Tuesday Blitz August 22 Late 2023"]
[White "Diano, Eden"]
[Black "Kula, Robert"]
[WhiteFideId "5203708"]
[BlackFideId "1101218"]
[WhiteElo "2540"]
[BlackElo "2123"]
[Result "0-1"]
[Round "1"]
[TimeControl "180+1"]
[Date "2023.08.22"]
[WhiteClock "0:01:21"]
[BlackClock "0:00:18"]
[Board "204"]

1. d4 {[%clk 0:02:59]}  d5 {[%clk 0:02:57]} 2. c4 {[%clk 0:02:59]}  c6 {[%clk 0:02:54]} 3. Nc3 {[%clk 0:02:59]}  Nf6 {[%clk 0:02:53]} 4. Nf3 {[%clk 0:02:58]}  dxc4 {[%clk 0:02:52]} 5. a4 {[%clk 0:02:58]}  Bf5 {[%clk 0:02:52]} 6. e3 {[%clk 0:02:56]}  e6 {[%clk 0:02:46]} 7. Bxc4 {[%clk 0:02:55]}  Nbd7 {[%clk 0:02:44]} 8. a5 {[%clk 0:02:54]}  Be7 {[%clk 0:02:43]} 9. Qb3 {[%clk 0:02:53]}  Rb8 {[%clk 0:02:39]} 10. O-O {[%clk 0:02:52]}  O-O {[%clk 0:02:37]} 11. Re1 {[%clk 0:02:50]}  b5 {[%clk 0:02:37]} 12. axb6 {[%clk 0:02:49]}  axb6 {[%clk 0:02:31]} 13. e4 {[%clk 0:02:45]}  Bg6 {[%clk 0:02:28]} 14. Bf4 {[%clk 0:02:42]}  Ra8 {[%clk 0:02:19]} 15. Rxa8 {[%clk 0:02:41]}  Qxa8 {[%clk 0:02:18]} 16. Ne5 {[%clk 0:02:41]}  Nxe5 {[%clk 0:02:11]} 17. dxe5 {[%clk 0:02:40]}  Nd7 {[%clk 0:02:08]} 18. Bxe6 {[%clk 0:02:39]}  Nc5 {[%clk 0:02:03]} 19. Qxb6 {[%clk 0:02:31]}  Nxe6 {[%clk 0:02:02]} 20. Be3 {[%clk 0:02:31]}  Rb8 {[%clk 0:01:57]} 21. Qa7 {[%clk 0:02:31]}  Qxa7 {[%clk 0:01:57]} 22. Bxa7 {[%clk 0:02:30]}  Rxb2 {[%clk 0:01:57]} 23. f3 {[%clk 0:02:31]}  f6 {[%clk 0:01:43]} 24. exf6 {[%clk 0:02:26]}  Bxf6 {[%clk 0:01:43]} 25. e5 {[%clk 0:02:26]}  Be7 {[%clk 0:01:43]} 26. Ne4 {[%clk 0:02:25]}  Bxe4 {[%clk 0:01:42]} 27. Rxe4 {[%clk 0:02:25]}  Rc2 {[%clk 0:01:36]} 28. f4 {[%clk 0:02:23]}  Bc5+ {[%clk 0:01:35]} 29. Bxc5 {[%clk 0:02:22]}  Nxc5 {[%clk 0:01:35]} 30. Re3 {[%clk 0:02:22]}  g6 {[%clk 0:01:30]} 31. g4 {[%clk 0:02:21]}  Kf7 {[%clk 0:01:18]} 32. f5 {[%clk 0:02:20]}  gxf5 {[%clk 0:01:05]} 33. gxf5 {[%clk 0:02:21]}  Ke7 {[%clk 0:01:05]} 34. e6 {[%clk 0:02:18]}  Rc1+ {[%clk 0:00:56]} 35. Kf2 {[%clk 0:02:17]}  Rc2+ {[%clk 0:00:55]} 36. Kf3 {[%clk 0:02:17]}  Nb7 {[%clk 0:00:43]} 37. h4 {[%clk 0:02:08]}  Nd6 {[%clk 0:00:41]} 38. Kf4 {[%clk 0:02:06]}  Rf2+ {[%clk 0:00:40]} 39. Kg5 {[%clk 0:02:01]}  Rxf5+ {[%clk 0:00:40]} 40. Kh6 {[%clk 0:02:01]}  Ne8 {[%clk 0:00:36]} 41. Rc3 {[%clk 0:01:53]}  c5 {[%clk 0:00:36]} 42. Kxh7 {[%clk 0:01:52]}  Rh5+ {[%clk 0:00:33]} 43. Kg6 {[%clk 0:01:52]}  Rxh4 {[%clk 0:00:33]} 44. Rxc5 {[%clk 0:01:52]}  Kxe6 {[%clk 0:00:33]} 45. Rh5 {[%clk 0:01:49]}  Rg4+ {[%clk 0:00:30]} 46. Rg5 {[%clk 0:01:50]}  Rf4 {[%clk 0:00:30]} 47. Ra5 {[%clk 0:01:46]}  Nd6 {[%clk 0:00:29]} 48. Ra6 {[%clk 0:01:45]}  Rg4+ {[%clk 0:00:29]} 49. Kh5 {[%clk 0:01:45]}  Rg8 {[%clk 0:00:28]} 50. Kh6 {[%clk 0:01:41]}  Ke5 {[%clk 0:00:25]} 51. Kh7 {[%clk 0:01:40]}  Rg4 {[%clk 0:00:25]} 52. Ra1 {[%clk 0:01:32]}  Kf6 {[%clk 0:00:22]} 53. Rh1 {[%clk 0:01:26]}  Rg7+ {[%clk 0:00:17]} 54. Kh6 {[%clk 0:01:22]}  Nf5+ {[%clk 0:00:18]} 55. Kh5 {[%clk 0:01:21]}  Rg5# {[%clk 0:00:18]} 0-1


[Site "https://www.chess.com"]